bitfinex/quotes_SOLUSD_20220103
["timestamp","ask_amount","ask_price","bid_price","bid_amount"]
[1641223975440,9.1495,173.47,173.38,1.5496]
[1641223976164,9.4095,173.47,173.38,1.5496]
[1641223976940,9.1495,173.47,173.38,1.5496]
[1641223978443,8.6495,173.47,173.38,1.5496]
[1641223978646,8.6495,173.47,173.38,10.1988]
[1641223982048,8.6495,173.47,173.38,1.2896]
[1641223982250,8.9095,173.47,173.38,1.2896]
[1641223982549,8.9095,173.47,173.35,1.335]
[1641223982550,9.4095,173.47,173.35,1.335]
[1641223983551,8.6519,173.42,173.35,1.335]
[1641223983751,8.6519,173.42,173.34,75.8382]
[1641223983948,9.4119,173.42,173.34,75.8382]
[1641223985751,9.4119,173.42,173.34,76.0982]
[1641223987654,9.4119,173.42,173.3,1.2346]
[1641223988056,17.5119,173.42,173.3,1.2346]
[1641223988455,8.6551,173.36,173.3,1.2346]
[1641223988654,8.6551,173.36,173.27,1.3208]
[1641223988858,9.1551,173.36,173.27,1.3208]
[1641223989056,9.1551,173.36,173.27,1.5808]
[1641223989456,9.1551,173.36,173.28,2.69382022]
[1641223989857,9.1551,173.36,173.28,2.95382022]
[1641223993059,9.1551,173.36,173.28,0.26]
[1641223993259,9.1551,173.36,173.26,83.4908]
[1641223993460,9.4151,173.36,173.26,74.8353]
[1641223994660,9.4151,173.36,173.27,2.99779316]
[1641223994860,9.1551,173.36,173.27,3.25779316]
[1641223995463,9.1551,173.36,173.27,0.26]
[1641223995664,9.4151,173.36,173.27,0.26]
[1641223995861,9.4151,173.36,173.26,75.0953]
[1641223996460,17.5151,173.36,173.21,2.74519368]
[1641223996661,23.6361,173.36,173.22,2.86905022]
[1641223997863,8.6606,173.29,173.22,2.86905022]
[1641223998062,8.9206,173.29,173.22,2.86905022]
[1641223998265,9.4206,173.29,173.22,2.86905022]
[1641223998901,17.5206,173.29,173.2,0.03151838]
[1641224000101,17.5206,173.29,173.21,2.2610994]
[1641224000301,18.7521,173.29,173.21,2.2610994]
[1641224000500,18.7521,173.29,173.21,2.5210994]
[1641224001802,18.7521,173.29,173.2,0.03151838]
[1641224002699,18.7521,173.29,173.2,2.34525986]
[1641224004701,18.7521,173.29,173.2,2.60525986]
[1641224007206,18.4921,173.29,173.2,2.60525986]
[1641224008708,8.6577,173.31,173.2,2.60525986]
[1641224008906,1.5787034,173.35,173.21,1.42669368]
[1641224009205,1.2797,173.34,173.21,3.03019368]
[1641224010004,2.0397,173.34,173.21,3.03019368]
[1641224010206,2.0397,173.34,173.2,2.34525986]
[1641224010207,8.1,173.33,173.2,0.03151838]
[1641224010405,8.6,173.33,173.2,0.03151838]
[1641224010605,16.458,173.33,173.2,0.03151838]
[1641224010906,1.42669368,173.32,173.2,0.03151838]
[1641224011104,8.1,173.31,173.2,0.03151838]
[1641224011505,8.6617,173.25,173.2,0.03151838]
[1641224011907,9.4217,173.25,173.2,0.03151838]
[1641224015110,8.1,173.24,173.2,0.03151838]
[1641224015308,8.6637,173.22,173.2,0.03151838]
[1641224015508,42.376,173.21,173.2,0.03151838]
[1641224015907,47.70029997,173.21,173.2,0.03151838]
[1641224016509,56.36349997,173.21,173.2,0.03151838]
[1641224018210,56.36349997,173.21,173.2,0.00151838]
[1641224018410,56.36349997,173.21,173.0,8.4921]
[1641224018411,64.0,173.2,173.0,8.4921]
[1641224018612,64.0,173.2,173.03,1.3074]
[1641224018613,8.1,173.19,173.03,1.3074]
[1641224018813,8.666,173.14,173.03,1.3074]
[1641224019016,8.1,173.13,173.03,1.3074]
[1641224019413,8.1,173.13,173.04,33.79854948]
[1641224019615,8.1,173.13,173.06,8.6654]
[1641224019814,8.1,173.13,173.04,33.79854948]
[1641224020818,16.7664,173.13,173.02,387.51016498]
[1641224021016,17.5264,173.13,173.02,378.84306498]
[1641224021219,17.5264,173.13,172.99,77.3077]
[1641224021817,17.5264,173.13,173.0,24.97163014]
[1641224022018,1.2348,173.12,173.0,33.63983014]
[1641224022218,8.1,173.11,173.0,33.63983014]
[1641224024120,8.36,173.11,173.0,33.63983014]
[1641224024417,8.6,173.11,173.0,33.63983014]
[1641224024942,17.2673,173.11,173.0,33.13983014]
[1641224025342,17.2673,173.11,173.0,33.39983014]
[1641224025744,17.2673,173.11,173.0,33.13983014]
[1641224027148,17.2673,173.11,173.0,33.39983014]
[1641224027349,17.2673,173.11,173.0,33.13983014]
[1641224028649,17.2673,173.11,173.0,33.39983014]
[1641224031251,17.2673,173.11,173.0,10.93665874]
[1641224031450,17.2673,173.11,173.0,2.26845874]
[1641224031451,18.95399368,173.11,173.0,2.26845874]
[1641224032652,18.95399368,173.11,172.93,151.7371]
[1641224032953,8.6716,173.03,172.93,72.5696]
[1641224033153,16.7716,173.03,172.93,72.5696]
[1641224033352,17.5316,173.03,172.93,72.5696]
[1641224033551,17.5316,173.03,172.94,2.81709623]
[1641224033756,17.5316,173.03,172.9,8.673]
[1641224033956,118.7616,173.03,172.84,8.495]
[1641224034359,118.7616,173.03,172.92,338.18814879]
[1641224034557,120.18829368,173.03,172.92,338.18814879]
[1641224034757,120.18829368,173.03,172.93,2.35326821]
[1641224034964,0.55774325,173.02,172.92,27.95289446]
[1641224035160,8.6742,172.97,172.92,27.95289446]
[1641224035360,8.1,172.96,172.85,73.8929]
[1641224035960,8.1,172.96,172.86,2.9040411]
[1641224036361,8.1,172.96,172.86,32.97477478]
[1641224036760,8.36,172.96,172.86,32.97477478]
[1641224036964,8.86,172.96,172.86,32.97477478]
[1641224037361,17.5347,172.96,172.86,32.97477478]
[1641224037761,16.7747,172.96,172.86,32.97477478]
[1641224037961,17.5347,172.96,172.86,32.97477478]
[1641224040365,9.4347,172.96,172.86,33.23477478]
[1641224040566,8.1,172.95,172.81,1.2893]
[1641224040767,28.9262,172.94,172.81,1.2893]
[1641224040968,8.1,172.93,172.77,1.2607]
[1641224041369,101.23,172.9,172.74,1.42669368]
[1641224041567,8.1,172.89,172.76,32.964463]
[1641224041767,8.6799,172.86,172.79,2.23656186]
[1641224041968,8.1,172.85,172.79,2.23656186]
[1641224042171,8.1,172.85,172.76,30.49406514]
[1641224042367,8.6,172.85,172.76,30.49406514]
[1641224042568,8.1,172.85,172.76,30.49406514]
[1641224042967,8.6,172.85,172.76,30.49406514]
[1641224043167,8.1,172.85,172.76,30.49406514]
[1641224043567,8.36,172.85,172.76,30.49406514]
[1641224043793,8.1,172.85,172.76,30.49406514]
[1641224044392,16.7805,172.85,172.76,39.17456514]
[1641224044593,16.7805,172.85,172.77,2.40722515]
[1641224045799,17.0405,172.85,172.77,2.40722515]
[1641224046098,17.0405,172.85,172.76,30.49406514]
[1641224046298,17.0405,172.85,172.73,75.7656]
[1641224046499,17.5405,172.85,172.73,84.4478]
[1641224046900,17.5405,172.85,172.74,2.84722023]
[1641224047404,17.5405,172.85,172.74,28.87725581]
[1641224047600,17.5405,172.85,172.74,29.13725581]
[1641224047801,17.5405,172.85,172.74,0.26]
[1641224048002,17.5405,172.85,172.73,76.0256]
[1641224048403,17.2805,172.85,172.73,76.0256]
[1641224048802,17.2805,172.85,172.74,2.74888159]
[1641224049004,17.2805,172.85,172.74,3.00888159]
[1641224049806,17.5405,172.85,172.74,3.00888159]
[1641224050807,17.2805,172.85,172.74,3.00888159]
[1641224051208,17.2805,172.85,172.74,11.69088159]
[1641224051914,17.2805,172.85,172.74,3.00888159]
[1641224052310,17.5405,172.85,172.74,3.00888159]
[1641224052513,17.2805,172.85,172.74,3.00888159]
[1641224052709,17.2805,172.85,172.74,11.69088159]
[1641224054910,17.5405,172.85,172.74,11.69088159]
[1641224056714,17.5405,172.85,172.74,8.682]
[1641224056917,120.19719368,172.85,172.73,75.7656]
[1641224057314,8.6845,172.79,172.73,75.7656]
[1641224057515,8.1,172.78,172.73,75.7656]
[1641224058015,8.1,172.78,172.74,2.61647781]
[1641224058615,8.1,172.78,172.69,24.44520168]
[1641224059214,8.1,172.78,172.69,23.95451718]
[1641224059413,16.7838,172.78,172.69,23.45451718]
[1641224059816,8.1,172.78,172.69,23.45451718]
[1641224060016,8.36,172.78,172.69,23.45451718]
[1641224060215,8.86,172.78,172.69,23.45451718]
[1641224060419,8.86,172.78,172.66,8.686]
[1641224060613,17.5438,172.78,172.66,8.686]
[1641224060815,17.5438,172.78,172.66,7.5372]
[1641224061015,17.5438,172.78,172.67,2.95122921]
[1641224062439,18.8437,172.78,172.67,8.6851]
[1641224062618,1.42669368,172.77,172.56,8.6747]
[1641224062816,8.1,172.76,172.6,1.3138]
[1641224063019,8.6873,172.72,172.6,1.3138]
[1641224063216,8.1,172.71,172.6,1.3138]
[1641224063418,29.7174,172.76,172.61,25.0340194]
[1641224063419,8.1,172.7,172.61,25.0340194]
[1641224064618,8.36,172.7,172.61,25.0340194]
[1641224065017,16.7879,172.7,172.61,33.7225194]
[1641224065418,17.0479,172.7,172.61,25.0340194]
[1641224066719,17.5479,172.7,172.61,25.0340194]
[1641224067525,17.0479,172.7,172.61,25.0340194]
[1641224067724,17.5479,172.7,172.61,0.08]
[1641224067924,18.97459368,172.7,172.61,0.08]
[1641224068228,17.2879,172.7,172.61,0.08]
[1641224068624,1.42669368,172.69,172.61,0.08]
[1641224068823,8.6908,172.65,172.61,0.08]
[1641224069023,30.39599368,172.69,172.61,0.08]
[1641224069024,8.1,172.64,172.61,0.08]
[1641224069226,4.56429997,172.63,172.61,0.08]
[1641224070859,3.0321,172.63,172.62,1.5]
[1641224071057,8.1,172.66,172.62,1.5]
[1641224072161,8.1,172.66,172.62,4.3477229]
[1641224072359,8.1,172.66,172.62,4.6077229]
[1641224072559,8.1,172.66,172.62,4.3477229]
[1641224073560,8.1,172.66,172.62,13.0363229]
[1641224073962,8.1,172.66,172.62,4.3477229]
[1641224074162,8.1,172.66,172.62,4.25697804]
[1641224075967,8.1,172.69,172.62,13.20557804]
[1641224076465,8.1,172.74,172.62,13.20557804]
[1641224076666,9.3456,172.74,172.62,13.20557804]
[1641224076965,9.3456,172.74,172.62,14.63227172]
[1641224077367,8.1,172.74,172.62,13.20557804]
[1641224077864,8.1,172.74,172.62,14.63227172]
[1641224078467,7.6,172.74,172.62,14.63227172]
[1641224078867,8.1,172.77,172.62,22.73227172]
[1641224079067,8.1,172.77,172.62,97.21477172]
[1641224079269,16.7845,172.77,172.62,97.21477172]
[1641224079668,16.7845,172.77,172.62,98.51307172]
[1641224079869,8.1,172.77,172.62,98.51307172]
[1641224080275,1.3558,172.8,172.62,199.74307172]
[1641224080673,1.5787034,172.84,172.62,199.74307172]
[1641224080873,1.5787034,172.84,172.63,1.257]
[1641224081076,1.5787034,172.84,172.73,8.6813]
[1641224081271,1.5787034,172.84,172.74,33.65293078]
[1641224081570,8.6811,172.84,172.74,33.91293078]
[1641224082171,8.6811,172.84,172.74,33.65293078]
[1641224082774,8.6811,172.84,172.74,33.91293078]
[1641224084577,8.6811,172.84,172.74,42.59553078]
[1641224085177,8.6811,172.84,172.74,42.33553078]
[1641224085377,8.9411,172.84,172.74,33.65293078]
[1641224085578,8.6832,172.8,172.74,33.65293078]
[1641224087282,7.1832,172.8,172.74,30.89521225]
[1641224087481,7.4432,172.8,172.74,30.89521225]
[1641224088708,7.4432,172.8,172.71,11.22336753]
[1641224089284,0.3922336,172.79,172.71,11.13253068]
[1641224089482,8.684,172.78,172.71,11.13253068]
[1641224089683,8.684,172.78,172.72,24.72593351]
[1641224089883,0.3922336,172.79,172.72,33.40933351]
[1641224090483,9.6358,172.81,172.72,33.40933351]
[1641224090686,8.6834,172.8,172.72,33.66933351]
[1641224090886,1.2758,172.81,172.72,33.66933351]
[1641224091486,8.1,172.83,172.72,33.66933351]
[1641224092492,17.0414,172.83,172.72,33.40933351]
[1641224092693,16.7814,172.83,172.72,33.40933351]
[1641224093293,17.0414,172.83,172.72,33.40933351]
[1641224093896,17.0414,172.83,172.72,33.66933351]
[1641224094093,17.0414,172.83,172.72,33.40933351]
[1641224094692,25.7422,172.83,172.72,33.40933351]
[1641224095498,25.7422,172.83,172.72,33.66933351]
[1641224095696,25.7422,172.83,172.72,33.40933351]
[1641224096724,17.0414,172.83,172.72,24.72593351]
[1641224096923,17.5414,172.83,172.72,24.72593351]
[1641224099629,17.5414,172.83,172.71,2.44883068]
[1641224100433,8.6848,172.77,172.71,2.44883068]
[1641224100829,8.9448,172.77,172.71,2.44883068]
[1641224101028,8.6848,172.77,172.71,2.44883068]
[1641224101830,8.1,172.79,172.71,2.44883068]
[1641224102132,8.6839,172.78,172.71,2.44883068]
[1641224103030,16.7834,172.79,172.71,11.39273068]
[1641224103230,8.6834,172.79,172.71,11.39273068]
[1641224107737,9.9604,172.8,172.71,11.39273068]
[1641224112243,8.6829,172.8,172.71,11.39273068]
[1641224112441,9.9456,172.82,172.71,11.39273068]
[1641224112845,10.4456,172.82,172.71,11.39273068]
[1641224113542,9.9456,172.82,172.71,11.39273068]
[1641224115442,16.7813,172.83,172.71,11.39273068]
[1641224119544,8.1,172.83,172.71,11.39273068]
[1641224121046,9.3357,172.83,172.71,11.39273068]
[1641224121748,8.1,172.83,172.71,11.39273068]
[1641224122247,8.6808,172.84,172.71,11.39273068]
[1641224122479,2.01207456,172.85,172.71,11.39273068]
[1641224123347,2.01207456,172.85,172.78,8.6804]
[1641224123550,2.01207456,172.85,172.78,11.85782693]
[1641224124549,10.69247456,172.85,172.78,11.85782693]
[1641224128852,2.01207456,172.85,172.78,11.85782693]
[1641224132958,1.3035,172.85,172.78,11.85782693]
[1641224134261,1.2301,172.86,172.78,11.85782693]
[1641224135465,86.0688,172.87,172.78,11.85782693]
[1641224145894,76.1178,172.87,172.78,11.85782693]
[1641224146296,1.5787034,172.9,172.78,13.28452061]
[1641224146696,2.0787034,172.9,172.78,13.28452061]
[1641224146895,0.81831832,172.89,172.78,13.28452061]
[1641224150704,9.49651832,172.89,172.78,11.85782693]
[1641224151906,1.224,172.88,172.78,11.85782693]
[1641224152107,9.9027,172.88,172.78,11.85782693]
[1641224153407,10.4027,172.88,172.78,11.85782693]
[1641224153613,10.4027,172.88,172.78,8.6804]
[1641224153810,10.4027,172.88,172.75,84.25]
[1641224153811,25.05839368,172.88,172.75,84.8318]
[1641224154010,26.63709708,172.88,172.67,8.1]
[1641224154210,36.04106537,172.88,172.7,2.6048]
[1641224154613,36.04106537,172.88,172.7,29.19145423]
[1641224154908,36.04106537,172.88,172.71,3.03544293]
[1641224155113,1.5787034,172.83,172.73,8.6827]
[1641224155310,8.6834,172.79,172.74,2.88080236]
[1641224155714,9.1834,172.79,172.74,2.88080236]
[1641224155913,8.6834,172.79,172.74,2.88080236]
[1641224158346,8.6834,172.79,172.72,8.6834]
[1641224158544,8.6834,172.79,172.72,8.9434]
[1641224159344,8.6834,172.79,172.72,11.42554129]
[1641224160361,9.1834,172.79,172.72,2.48214129]
[1641224161549,8.6834,172.79,172.72,2.48214129]
[1641224161746,9.1834,172.79,172.72,2.48214129]
[1641224162746,8.6834,172.79,172.72,2.48214129]
[1641224163146,9.1834,172.79,172.72,2.48214129]
[1641224164048,10.7621034,172.79,172.72,2.48214129]
[1641224164648,10.7621034,172.79,172.72,2.74214129]
[1641224164850,10.2621034,172.79,172.72,2.74214129]
[1641224165049,8.6834,172.79,172.72,2.74214129]
[1641224167448,8.6834,172.79,172.71,8.6839]
[1641224167649,10.61009368,172.79,172.7,26.58665423]
[1641224167849,10.87009368,172.79,172.7,26.58665423]
[1641224168050,18.97009368,172.79,172.69,77.2222]
[1641224168248,20.54879708,172.79,172.69,77.2222]
[1641224168452,1.3405,172.78,172.69,77.2222]
[1641224168651,8.6857,172.74,172.7,2.16589379]
[1641224169652,3.00539708,172.77,172.7,2.16589379]
[1641224169951,8.6852,172.75,172.7,2.42589379]
[1641224170153,8.6852,172.75,172.7,2.16589379]
[1641224170352,1.5787034,172.77,172.7,2.42589379]
[1641224170750,1.5787034,172.77,172.71,31.28483383]
[1641224171155,1.5787034,172.77,172.71,31.54483383]
[1641224171667,1.5787034,172.77,172.71,31.28483383]
[1641224171867,1.2795,172.78,172.71,31.54483383]
[1641224172266,1.2795,172.78,172.71,31.28483383]
[1641224172467,9.9634,172.78,172.71,31.28483383]
[1641224173068,9.9634,172.78,172.71,31.54483383]
[1641224173672,11.5421034,172.78,172.71,31.54483383]
[1641224174271,12.96879708,172.78,172.71,31.54483383]
[1641224174570,12.96879708,172.78,172.71,40.22843383]
[1641224174771,1.5787034,172.78,172.71,40.22843383]
[1641224175609,1.5787034,172.82,172.71,40.22843383]
[1641224176209,1.5787034,172.82,172.71,48.32843383]
[1641224177510,10.2598034,172.83,172.71,48.32843383]
[1641224178212,1.5787034,172.83,172.71,48.32843383]
[1641224178611,1.5787034,172.83,172.71,49.59933383]
[1641224179213,1.5787034,172.83,172.71,51.02602751]
[1641224179613,1.5787034,172.84,172.71,51.02602751]
[1641224180515,1.5787034,172.84,172.71,50.76602751]
[1641224180714,1.5787034,172.84,172.71,49.33933383]
[1641224181319,1.5787034,172.84,172.73,2.92345843]
[1641224181519,10.2595034,172.84,172.78,31.47620913]
[1641224181717,1.5787034,172.84,172.78,31.47620913]
[1641224182015,1.5787034,172.84,172.78,29.58796045]
[1641224183021,1.5787034,172.83,172.78,29.58796045]
[1641224185723,1.5787034,172.84,172.78,29.58796045]
[1641224186544,1.5787034,172.84,172.78,38.26786045]
[1641224187147,10.0354,172.85,172.78,38.26786045]
[1641224187851,1.3553,172.85,172.78,38.26786045]
[1641224188854,10.2578034,172.88,172.78,38.26786045]
[1641224189055,1.5787034,172.88,172.83,8.677]
[1641224189253,1.5787034,172.88,172.84,30.89763233]
[1641224189453,1.5787034,172.91,172.84,30.89763233]
[1641224189652,1.5787034,172.91,172.84,31.15763233]
[1641224189858,1.5787034,172.91,172.85,2.6643411]
[1641224190154,1.5787034,172.93,172.85,2.9243411]
[1641224191361,10.2549034,172.93,172.85,11.6010411]
[1641224191957,10.2549034,172.93,172.85,11.3410411]
[1641224192159,11.04121653,172.93,172.85,11.3410411]
[1641224192757,10.2557034,172.92,172.85,11.3410411]
[1641224193158,10.2557034,172.92,172.85,2.6643411]
[1641224193962,8.677,172.92,172.85,2.6643411]
[1641224195262,1.5787034,172.89,172.85,2.6643411]
[1641224195961,1.5787034,172.9,172.85,2.6643411]
[1641224196868,10.2564034,172.9,172.85,2.6643411]
[1641224197564,1.5787034,172.88,172.82,74.2551]
[1641224197765,1.5787034,172.88,172.82,83.1933]
[1641224198563,1.5787034,172.88,172.83,2.98261249]
[1641224198967,1.5787034,172.88,172.83,3.24261249]
[1641224200969,1.5787034,172.88,172.83,2.98261249]
[1641224201170,10.2573034,172.88,172.83,2.98261249]
[1641224201371,11.68399708,172.88,172.83,2.98261249]
[1641224201571,10.2573034,172.88,172.83,2.98261249]
[1641224201971,11.68399708,172.88,172.83,2.98261249]
[1641224202574,1.5787034,172.86,172.83,2.98261249]
[1641224202774,1.5787034,172.86,172.84,1.40925514]
[1641224202978,4.65504483,172.85,172.83,2.98261249]
[1641224203379,10.2581034,172.87,172.83,2.98261249]
[1641224203578,1.5787034,172.87,172.83,2.98261249]
[1641224204991,1.5787034,172.87,172.81,31.13352082]
[1641224205198,1.5787034,172.87,172.81,31.39352082]
[1641224205798,1.5787034,172.86,172.81,22.71482082]
[1641224205999,1.5787034,172.86,172.81,0.26]
[1641224206298,1.5787034,172.86,172.81,2.81974661]
[1641224207504,1.5787034,172.86,172.81,11.49844661]
[1641224207704,1.5787034,172.87,172.81,11.49844661]
[1641224208309,2.8121034,172.9,172.81,11.49844661]
[1641224208504,3.3121034,172.9,172.81,11.49844661]
[1641224209309,1.5787034,172.89,172.81,11.49844661]
[1641224209705,11.9897034,172.9,172.81,11.49844661]
[1641224209908,11.9897034,172.9,172.81,11.23844661]
[1641224210307,1.5787034,172.89,172.81,11.23844661]
[1641224210507,10.2571034,172.89,172.81,11.23844661]
[1641224211208,1.5787034,172.88,172.81,11.49844661]
[1641224211610,10.2571034,172.89,172.81,11.49844661]
[1641224212210,1.5787034,172.89,172.81,11.49844661]
[1641224214312,11.4896034,172.9,172.81,11.49844661]
[1641224215012,1.5787034,172.89,172.81,11.49844661]
[1641224215612,2.8121034,172.9,172.81,11.49844661]
[1641224216816,11.4896034,172.9,172.81,11.49844661]
[1641224217014,1.5787034,172.89,172.81,11.49844661]
[1641224220521,10.2568034,172.89,172.81,8.6787]
[1641224220723,1.5787034,172.88,172.81,8.6787]
[1641224221123,1.5787034,172.88,172.8,26.92073798]
[1641224221325,1.5787034,172.87,172.8,35.59963798]
[1641224221722,1.5787034,172.87,172.8,37.89522057]
[1641224221924,1.5787034,172.87,172.8,8.6789]
[1641224222123,1.5787034,172.87,172.79,1.295]
[1641224222322,1.5787034,172.87,172.74,76.4811]
[1641224222528,1.3325,172.86,172.73,2.5675]
[1641224222925,9.52669368,172.85,172.74,3.0164474]
[1641224223125,9.78669368,172.85,172.74,3.0164474]
[1641224223324,3.00539708,172.84,172.74,3.0164474]
[1641224223523,3.26539708,172.84,172.74,3.0164474]
[1641224223751,8.6829,172.8,172.74,3.0164474]
[1641224224750,3.00539708,172.83,172.74,3.0164474]
[1641224224951,8.682,172.81,172.74,3.0164474]
[1641224225351,9.182,172.81,172.74,3.0164474]
[1641224225551,9.182,172.81,172.74,3.2764474]
[1641224226252,0.5,172.81,172.74,11.9583474]
[1641224226451,10.7603034,172.82,172.74,11.9583474]
[1641224227453,10.2603034,172.82,172.74,11.9583474]
[1641224231258,8.6816,172.82,172.74,11.9583474]
[1641224235370,8.6816,172.82,172.74,11.6983474]
[1641224236264,9.1816,172.82,172.74,11.6983474]
[1641224236467,8.6816,172.82,172.74,11.6983474]
[1641224236866,8.6816,172.82,172.74,11.9583474]
[1641224237566,8.6816,172.82,172.74,11.6983474]
[1641224238167,8.6816,172.82,172.74,3.0164474]
[1641224239372,8.6816,172.82,172.74,3.2764474]
[1641224239672,10.2603034,172.82,172.74,3.2764474]
[1641224239874,18.7308034,172.82,172.74,3.2764474]
[1641224240670,10.2603034,172.82,172.74,3.2764474]
[1641224242904,10.7603034,172.82,172.74,3.2764474]
[1641224245306,10.7603034,172.82,172.74,11.9582474]
[1641224246210,9.1816,172.82,172.74,11.9582474]
[1641224247613,1.5787034,172.83,172.74,19.3272474]
[1641224247808,1.5787034,172.83,172.75,8.1]
[1641224248009,1.5787034,172.85,172.79,8.6791]
[1641224248209,1.5787034,172.85,172.8,32.61111009]
[1641224248610,1.5787034,172.85,172.8,32.87111009]
[1641224249210,1.2663,172.87,172.8,41.54971009]
[1641224249211,1.5787034,172.87,172.8,41.54971009]
[1641224250010,4.1849034,172.89,172.8,41.54971009]
[1641224250312,12.8630034,172.89,172.8,41.54971009]
[1641224251410,1.5787034,172.88,172.8,41.54971009]
[1641224251810,1.5787034,172.88,172.8,49.64971009]
[1641224253611,1.5787034,172.89,172.8,49.64971009]
[1641224254211,1.5787034,172.89,172.8,49.38971009]
[1641224254411,8.678,172.89,172.8,49.38971009]
[1641224256014,8.678,172.89,172.8,49.64971009]
[1641224257418,8.678,172.89,172.8,49.38971009]
[1641224257625,9.438,172.89,172.8,40.71111009]
[1641224257924,9.438,172.89,172.8,2.14685898]
[1641224258926,9.438,172.89,172.8,2.40685898]
[1641224259124,1.2873,172.88,172.8,2.40685898]
[1641224259324,8.6802,172.85,172.8,2.40685898]
[1641224260829,8.6802,172.85,172.8,0.26]
[1641224261029,8.6802,172.85,172.78,24.52872941]
[1641224262164,8.6802,172.85,172.79,2.8518808]
[1641224262565,8.6802,172.85,172.79,3.1118808]
[1641224262768,8.6796,172.86,172.79,3.1118808]
[1641224263568,2.8660034,172.88,172.79,11.7912808]
[1641224263768,2.8660034,172.88,172.79,18.1732808]
[1641224263967,1.5787034,172.88,172.8,8.1]
[1641224264370,1.5787034,172.89,172.8,8.36]
[1641224264779,1.5787034,172.89,172.84,8.6769]
[1641224265013,1.5787034,172.89,172.85,38.05515507]
[1641224265173,1.5787034,172.93,172.85,38.05515507]
[1641224265373,1.5787034,172.93,172.85,43.51815507]
[1641224265775,1.5787034,172.93,172.88,8.6745]
[1641224265973,94.0,172.94,172.88,8.9345]
[1641224268379,94.5,172.94,172.88,8.9345]
[1641224268577,0.5,172.94,172.88,8.9345]
[1641224268879,1.32141915,172.95,172.88,8.9345]
[1641224269076,0.82141915,172.95,172.88,8.9345]
[1641224269276,1.32141915,172.95,172.88,8.9345]
[1641224270080,1.32141915,172.95,172.88,8.6745]
[1641224271386,0.82141915,172.95,172.88,8.9345]
[1641224271585,1.32141915,172.95,172.88,8.9345]
[1641224272185,0.82141915,172.95,172.88,8.9345]
[1641224272385,1.32141915,172.95,172.88,8.9345]
[1641224273014,0.82141915,172.95,172.88,8.9345]
[1641224273215,1.32141915,172.95,172.88,8.9345]
[1641224273612,0.82141915,172.95,172.88,8.6745]
[1641224273812,9.49671915,172.95,172.88,8.6745]
[1641224274513,9.49671915,172.95,172.87,16.7754]
[1641224274713,9.75671915,172.95,172.85,29.95515507]
[1641224274914,1.42669368,172.94,172.85,29.95515507]
[1641224275115,8.677,172.92,172.85,29.95515507]
[1641224275515,10.10369368,172.92,172.85,29.95515507]
[1641224275917,10.10369368,172.92,172.85,30.21515507]
[1641224277016,8.677,172.92,172.85,30.21515507]
[1641224278817,8.677,172.92,172.85,29.95515507]
[1641224279420,8.6761,172.93,172.85,38.63155507]
[1641224280422,8.6761,172.93,172.85,38.89155507]
[1641224289731,8.1761,172.93,172.85,38.89155507]
[1641224293367,8.6761,172.93,172.85,38.89155507]
[1641224293567,8.6761,172.93,172.85,38.63155507]
[1641224293767,8.6761,172.93,172.85,29.95515507]
[1641224293969,8.4361,172.93,172.85,29.95515507]
[1641224294170,8.9361,172.93,172.85,2.7262392]
[1641224295371,8.9361,172.93,172.82,29.60873158]
[1641224295571,8.9361,172.93,172.82,38.54663158]
[1641224296172,8.6779,172.9,172.82,38.54663158]
[1641224296476,1.3107,172.92,172.83,2.79139757]
[1641224296873,2.0707,172.92,172.83,3.05139757]
[1641224298274,8.6776,172.9,172.83,3.05139757]
[1641224304183,8.6776,172.9,172.82,8.6779]
[1641224304386,8.6776,172.9,172.8,74.3102]
[1641224304387,1.42669368,172.89,172.77,8.7487]
[1641224304584,8.6806,172.84,172.77,8.7487]
[1641224305383,8.6806,172.84,172.78,28.34995667]
[1641224306784,8.9406,172.84,172.78,28.34995667]
[1641224307985,8.6806,172.84,172.78,28.60995667]
[1641224308585,9.34,172.88,172.78,28.60995667]
[1641224309183,1.24,172.88,172.78,28.60995667]
[1641224309384,1.24,172.88,172.78,35.73295667]
[1641224309586,1.24,172.88,172.78,44.41245667]
[1641224310788,8.1,172.92,172.78,44.41245667]
[1641224310990,1.2987,172.91,172.78,44.41245667]